Cogmind - Beta 11.1 *** ADVENTURER MODE // 2022.05.17 @ 18:40:27 Player: User Result: Self-destructed Performance ------------- Evolutions (1) 500 Regions Visited (3) 600 Robots Destroyed (6) 30 Value Destroyed (148) 148 Prototype IDs (0) 0 Alien Tech Used (0) 0 Bonus (0) 0 TOTAL SCORE: 1278 Bonus ------- None Cogmind --------- Core Integrity 185/400 Matter 299/300 Energy 100/100 System Corruption 2% Temperature Cool (6) Movement Core (100) Ox1 Location -9/Materials Parts ------- > --- POWER (1) -------- (None) > --- PROPULSION (3) --- (None) > --- UTILITY (3) ------ Small Storage Unit > --- WEAPON (2) ------- Light Assault Rifle > --- INVENTORY (8) ---- Ion Engine Aluminum Leg Hacking Suite Hacking Suite Small Laser Mining Laser Peak State ------------ > --- POWER ------------ Ion Engine > --- PROPULSION ------- Aluminum Leg Aluminum Leg > --- UTILITY ---------- Small Storage Unit Hacking Suite Hacking Suite > --- WEAPON ----------- Small Laser Small Laser > --- INVENTORY -------- Ion Engine Aluminum Leg Hacking Suite Hacking Suite Light Assault Rifle Light Assault Rifle Mining Laser [Rating: 13] Favorites ----------- Power Ion Engine Engine Ion Engine Propulsion Aluminum Leg Leg Aluminum Leg Utility Small Storage Unit Storage Small Storage Unit Hackware Hacking Suite Weapon Small Laser Energy Gun Small Laser Ballistic Gun Light Assault Rifle Build | -11 -10 -10 -9 ------- Run | Scr Mat Min Mat Slots Evolved 2 | . . . 2 Power . | . . . . Propulsion 1 | . . . 1 Utility 1 | . . . 1 Weapon . | . . . . Parts Attached 4 | . . . 4 Power . | . . . . Engine . | . . . . Core . | . . . . Reactor . | . . . . Propulsion . | . . . . Treads . | . . . . Leg . | . . . . Wheel . | . . . . Hover . | . . . . Flight . | . . . . Utility 2 | . . . 2 Device . | . . . . Storage . | . . . . Processor . | . . . . Hackware 2 | . . . 2 Protection . | . . . . Artifact . | . . . . Weapon 2 | . . . 2 Energy Gun . | . . . . Energy Cannon . | . . . . Ballistic Gun 2 | . . . 2 Ballistic Cannon . | . . . . Launcher . | . . . . Special Weapon . | . . . . Impact Weapon . | . . . . Slashing Weapon . | . . . . Piercing Weapon . | . . . . Special Melee Weapon . | . . . . Unidentified Prototypes . | . . . . Parts Lost 7 | . . . 7 Power 1 | . . . 1 Propulsion 2 | . . . 2 Utility 2 | . . . 2 Weapon 2 | . . . 2 Highest Loss Streak 7 | . . . 7 To Critical Strikes . | . . . . Average Slot Usage (%) 81 | . 85 85 76 Engine 11 | . 14 14 8 Leg 23 | . 28 28 17 Storage 12 | . 14 14 11 Hackware 7 | . . . 17 Energy Gun 23 | . 28 28 18 Ballistic Gun 1 | . . . 3 Naked Turns . | . . . . Heaviest Build 12 | 12 12 12 12 Greatest Support 20 | 20 20 20 20 Greatest Overweight (x) 2 | . . . 2 Average Overweight (x) . | . . . . Largest Inventory Capacity 8 | . 8 8 8 Average Capacity 8 | . 8 8 8 Most Carried 8 | . 7 8 8 Average Carried 7 | . 6 7 6 Final Capacity 8 | 8 8 8 8 Final Carried 7 | 6 7 7 6 Class Distribution -------------------- 63% | Mutant 36% | Hacker-Mutant Dominant Class ---------------- Mutant | -10/Materials Mutant | -10/Mines Hacker-Mutant | -9/Materials Resources | -11 -10 -10 -9 ----------- Run | Scr Mat Min Mat Matter Collected 234 | 200 . . 34 Remotely . | . . . . Salvage Created 229 | . . 127 102 Parts 13 | . . 6 7 Haulers Intercepted 1 | . . . 1 Recyclers Shooed . | . . . . Parts Field Recycled . | . . . . Retrieved Matter . | . . . . Parts Self-Destructed . | . . . . Prevented . | . . . . Kills | -11 -10 -10 -9 ------- Run | Scr Mat Min Mat Combat Hostiles Destroyed 5 | . . 4 1 Guns 5 | . . 4 1 Classes Destroyed 4 | . . 2 2 Hauler 1 | . . . 1 Swarmer 2 | . . 2 . Grunt 2 | . . 2 . Sentry 1 | . . . 1 Best Kill Streak 2 | . . 2 1 Combat Bots Only 2 | . . 2 1 Max Kills in Single Turn 1 | . . 1 1 Gunslinging . | . . . . Exploded . | . . . . Melee . | . . . . Uniques/NPCs Destroyed . | . . . . Combat | -11 -10 -10 -9 -------- Run | Scr Mat Min Mat Damage Taken 800 | . 40 130 630 Core 273 | . 15 43 215 Absorbed by Shields . | . . . . Core Remaining (%) 88 | 100 . 76 . Volleys Fired 32 | . . 12 20 Largest 2 | . . 2 2 Hottest 80 | . . 80 80 Shots Fired 61 | . . 24 37 Gun 61 | . . 24 37 Cannon . | . . . . Launcher . | . . . . Special . | . . . . Kinetic 18 | . . . 18 Thermal 43 | . . 24 19 Explosive . | . . . . Electromagnetic . | . . . . Robot Hit Streak 18 | . . 18 14 Robot Miss Streak 2 | . . 2 2 Penetration Max . | . . . . Secondary Targets 2 | . . 2 . Max Gunslinging Chain 1 | . . 1 . Shots Hit Robots 52 | . . 20 32 Core Hits 15 | . . 7 8 Critical Kills . | . . . . Critical Parts Destroyed 1 | . . . 1 Critical Strikes 1 | . . . 1 Destroy 1 | . . . 1 Melee Attacks . | . . . . Impact . | . . . . Slashing . | . . . . Piercing . | . . . . Sneak Attacks . | . . . . Combat Hostiles . | . . . . Follow-up Attacks . | . . . . Damage Inflicted 535 | . . 220 315 Guns 535 | . . 220 315 Cannons . | . . . . Explosions . | . . . . Melee . | . . . . Ramming . | . . . . Kinetic 128 | . . . 128 Thermal 407 | . . 220 187 Explosive . | . . . . Electromagnetic . | . . . . Impact . | . . . . Slashing . | . . . . Piercing . | . . . . Highest Corruption 2 | . . . 2 Average Corruption 2 | . . . 2 Corruption Purged . | . . . . Corruption Blocked . | . . . . Overload Shots . | . . . . Overflow Damage . | . . . . Projectiles . | . . . . Explosions . | . . . . Melee . | . . . . Knockbacks . | . . . . Impact . | . . . . Kinetic . | . . . . Secondary . | . . . . Self-Inflicted Damage . | . . . . Shots . | . . . . Rammed . | . . . . Targets Rammed . | . . . . Kicked . | . . . . Crushed . | . . . . Highest Temperature 218 | . . 218 50 Average Temperature 66 | . . 104 20 Received Heat Transfer 291 | . . 96 195 Siege Activations . | . . . . Robots Corrupted . | . . . . Combat Hostiles . | . . . . Parts Fried . | . . . . Impact Corruptions . | . . . . Robots Melted . | . . . . Combat Hostiles . | . . . . Parts Melted 3 | . . 2 1 Heat Transferred 925 | . . 500 425 Parts Sabotaged . | . . . . Parts Stolen . | . . . . Parts Stripped . | . . . . Power Chain Reactions . | . . . . Missiles Intercepted . | . . . . Alert | -11 -10 -10 -9 ------- Run | Scr Mat Min Mat Peak Influence 90 | . . 90 81 Initial 29 | . . . 29 Average 46 | . . 67 40 Maximum Alert Level . | . . . . Low Security (%) 100 | . 100 100 100 Level 1 . | . . . . Level 2 . | . . . . Level 3 . | . . . . Level 4 . | . . . . Level 5 . | . . . . High Security . | . . . . Max Security . | . . . . Squads Dispatched . | . . . . Investigation . | . . . . Extermination . | . . . . Reinforcement . | . . . . Assault . | . . . . Garrison . | . . . . Intercept . | . . . . Searches Triggered . | . . . . Construction Impeded . | . . . . Haulers Reinforced . | . . . . Active Scanning Responses . | . . . . Cargo Convoy Interrupts . | . . . . Stealth | -11 -10 -10 -9 --------- Run | Scr Mat Min Mat Distress Signals . | . . . . Communications Jammed . | . . . . Distress Signals . | . . . . Times Spotted 18 | . 3 5 10 Peak Tracking Total 8 | . 3 3 8 Tactical Retreats . | . . . . Traps | -11 -10 -10 -9 ------- Run | Scr Mat Min Mat Traps Triggered . | . . . . Indirectly . | . . . . Trap Hack Attempts . | . . . . Triggered . | . . . . Disarmed . | . . . . Reprogrammed . | . . . . Reused . | . . . . Traps Extracted . | . . . . Installed . | . . . . Triggered . | . . . . Machines | -11 -10 -10 -9 ---------- Run | Scr Mat Min Mat Machines Disabled . | . . . . Max in Single Turn . | . . . . Machines Sabotaged . | . . . . Garrisons Compromised . | . . . . Overloaded Fab Kills . | . . . . Hacking | -11 -10 -10 -9 --------- Run | Scr Mat Min Mat Machines Accessed 1 | . . . 1 Terminals . | . . . . Fabricators . | . . . . Repair Stations . | . . . . Recycling Units . | . . . . Scanalyzers 1 | . . . 1 Garrison Access . | . . . . Total Hacks 5 | . . . 5 Successful 5 | . . . 5 Failed . | . . . . Catastrophic . | . . . . Database Lockouts . | . . . . Manual . | . . . . Terminals . | . . . . Fabricators . | . . . . Repair Stations . | . . . . Recycling Units . | . . . . Scanalyzers 5 | . . . 5 Garrison Access . | . . . . Terminal Hacks . | . . . . Fabricator Hacks . | . . . . Repair Station Hacks . | . . . . Recycling Unit Hacks . | . . . . Scanalyzer 5 | . . . 5 Insert Component 3 | . . . 3 Analyze 2 | . . . 2 Garrison Access Hacks . | . . . . Unauthorized Hacks . | . . . . Terminals . | . . . . Fabricators . | . . . . Repair Stations . | . . . . Recycling Units . | . . . . Scanalyzers . | . . . . Garrison Access . | . . . . Data Cores Recovered . | . . . . Used . | . . . . Hacking Detections 1 | . . . 1 Full Trace Events . | . . . . Feedback Events . | . . . . Feedback Blocked . | . . . . Robot Schematics Acquired . | . . . . Robots Built . | . . . . Authchips . | . . . . Time . | . . . . Total Robot Build Rating . | . . . . Part Schematics Acquired 2 | . . . 2 Parts Built . | . . . . Authchips . | . . . . Time . | . . . . Total Part Build Rating . | . . . . Parts Repaired . | . . . . Time . | . . . . Parts Recycled . | . . . . Recycled Matter . | . . . . Retrieved Matter . | . . . . Retrieved Components . | . . . . Parts Scanalyzed 2 | . . . 2 Part Schematics Acquired 2 | . . . 2 Parts Damaged . | . . . . Bothacking | -11 -10 -10 -9 ------------ Run | Scr Mat Min Mat Used RIF Installer . | . . . . Robots Hacked . | . . . . Non-combat . | . . . . Combat . | . . . . Robot Hacks Applied . | . . . . Relay Couplers Released . | . . . . Fabnet Peak Effective % . | . . . . Robots Rewired . | . . . . Allies Hacked . | . . . . Hacks Repelled . | . . . . Allies | -11 -10 -10 -9 -------- Run | Scr Mat Min Mat Total Allies . | . . . . Largest Group . | . . . . Highest-Rated Group . | . . . . Highest-Rated Ally . | . . . . Total Orders . | . . . . Ally Attacks . | . . . . Total Damage . | . . . . Kills . | . . . . Allies Corrupted . | . . . . Allies Melted . | . . . . Intel | -11 -10 -10 -9 ------- Run | Scr Mat Min Mat Robot Analysis Total . | . . . . Derelict Logs Recovered . | . . . . Drone Launches . | . . . . Drone Recoveries . | . . . . Exploration | -11 -10 -10 -9 ------------- Run | Scr Mat Min Mat Turns Passed 316 | . 41 135 140 Spaces Moved 178 | 1 34 79 64 Core 2 | . . . 2 Treads . | . . . . Legs 176 | 1 34 79 62 Wheels . | . . . . Hover . | . . . . Flight . | . . . . Fastest Speed 100 | 120 120 120 100 Average Speed 120 | 120 120 120 120 Slowest Speed 150 | 120 120 120 150 Overloaded Moves . | . . . . Propulsion Burnouts . | . . . . Robots Hopped . | . . . . Cave-ins Triggered . | . . . . Exploration Rate (%) 12 | 2 11 24 13 Regions Visited 3 Branch Regions 1 Pre-discovered Areas . | . . . . Known Exits Taken . | . . . . Unknown Exits Taken 3 | 1 1 1 . Scrap Searched . | . . . . Spaces Dug . | . . . . Terrain Destroyed . | . . . . Melee . | . . . . Projectile . | . . . . AOE . | . . . . Terrain Rammed . | . . . . Walls Destroyed . | . . . . Machines Disabled . | . . . . Actions | -11 -10 -10 -9 --------- Run | Scr Mat Min Mat Total 224 | . 34 96 94 Wait 2 | . . 2 . Move 175 | . 33 78 64 Hop . | . . . . Pick Up 7 | . 1 2 4 Fast Attach . | . . . . Attach 3 | . . . 3 Detach . | . . . . Swap 1 | . . . 1 Drop 4 | . . 2 2 Fire 32 | . . 12 20 Melee . | . . . . Ram . | . . . . Kick . | . . . . Crush . | . . . . Escape Stasis . | . . . . Rewire . | . . . . Trap . | . . . . Miscellaneous . | . . . . Route ------- -11/Scrapyard -10/Materials -10/Mines -9/Materials (discovered 1 exit: [*Min]) History --------- Turn | Location | Event 1 | -11/Scrapyard | Discovered new exit (range 0) 1 | -11/Scrapyard | Entered Materials 21 | -10/Materials | Discovered new exit (range 6) 42 | -10/Materials | Entered Mines 137 | -10/Mines | Discovered new exit (range 9) 177 | -10/Mines | Entered Materials 177 | -9/Materials | Evolved 2 slots: Propulsion x1, Utility x1 285 | -9/Materials | Discovered new exit (range 12) 316 | -9/Materials | Core integrity fell below 50% 317 | -9/Materials | Self-destructed Last Messages --------------- 00304_ Lgt. Assault Rifle destroyed. 00305_ The unstable cave ceiling collapses. 00305_ K-01 Serf collects debris. 00305_ U-05 Engineer lays Concrete. 00306_ Acquired 4 matter. 00306_ K-01 Serf collects debris. 00307_ U-05 Engineer lays Concrete. 00308_ Acquired 10 matter. 00308_ U-05 Engineer lays Concrete. 00308_ K-01 Serf collects debris. 00309_ U-05 Engineer lays Concrete. 00310_ K-01 Serf collects debris. 00311_ U-05 Engineer lays Concrete. 00311_ K-01 Serf collects debris. 00311_ Sml. Laser destroyed. 00312_ U-05 Engineer builds a Wall. 00313_ K-01 Serf collects debris. 00315_ K-01 Serf destroyed. 00315_ Hacking Suite destroyed. 00315_ System corrupted by crushing effect (+2). Map ----- +----------------------------------------------------+ | ?????????????????????????????????????????????????? | | ?????????????????????????????????????????????????? | | ?????????????????????????????????????????????????? | | ?????????????????????????????????????????????????? | | ?????????????????????????????????????????????????? | | ?????????????????????????????????????????????????? | | ????????????????????????????????????????????????## | | ???????????????????????????????????????????????##! | | ???????????????????????????????????????????????#! | | ???????????????????????????????????????????????#! | | ??????????????????????? ?????????????????????#! | | ?????????????????????? ???##????????????????#! | | ??????????????????????# %???[ ???????????????##! | | ??????????????????????# #??? "???????????????## | | ??????????????????????#k #????"""???????????????? | | ????????????? ????????# #????? "??????????????? | | ????????????##+##????## ##????? ????????###### | | ????????????? ##### ########+#####???# !* | | ??????????????? a #???# *% | | ???????????????? g #???# /* | | ????????????????? g #???# ## | | ??????????????????# u ##### ##+##### #? | | ?????????????????## # #g # #??# # # #? | | ?????????????????## s s%* #### # """" + +? | | ?????????????????# sb + """" # #? | | ?????????????????## =@ k ### # """" # #? | | ?????????????????# %k #?##### # #? | | ?????????????? """ ##?????# # #? | | ????????????? " #??????######## #? | | ?????????????w |" ##?????????????# #? | | ????????????? < ""# ##?????????????# #? | | ????????????? !?###########??????????????# ? | | ??????????????? ???????????????????????????# ? | | ?????????????? ????????????????????????????# ? | | ????????????????????????????????????????????# ## | | ????????????????????????????????????????????? #? | | ????????????????????????????????????????????? #? | | ????????????????????????????????????????????? ?? | | ?????????????????????????????????????????????????? | | ?????????????????????????????????????????????????? | | ?????????????????????????????????????????????????? | | ?????????????????????????????????????????????????? | | ?????????????????????????????????????????????????? | | ?????????????????????????????????????????????????? | | ?????????????????????????????????????????????????? | | ?????????????????????????????????????????????????? | | ?????????????????????????????????????????????????? | | ?????????????????????????????????????????????????? | | ?????????????????????????????????????????????????? | | ?????????????????????????????????????????????????? | +----------------------------------------------------+ Best States ------------- Heat Dissipation 28 Energy Generation 10 Energy Capacity 250 Matter Stores 300 Matter Capacity 300 Sight Range 16 Terrain Scan Density 10 Resistance: KI 20 Resistance: TH 20 Resistance: EX 20 Resistance: EM 20 Resistance: I 20 Resistance: S 20 Resistance: P 20 Evasion (%) 55 Offensive Hacking 30 Item Schematics ----------------- Hacking Suite | -9/Materials | Scanalyzed Lgt. Assault Rifle | -9/Materials | Scanalyzed Robot Schematics ------------------ None Fabricated ------------ Nothing Alien Tech Used ----------------- None Achievements -------------- None Challenges ------------ None Game ------ Seed OmegaCarbideLeg Manual? 0 Play Time 00:06:50 Cumulative 99.7 hours Start 2022.05.17 @ 18:35:35 End 2022.05.17 @ 18:40:27 Sessions 1 Manual Loads 0 Difficulty Adventurer Special Mode None Game No. 110 Rogue 83 Adventurer 27 Explorer 0 Win Type - Total 5 Types 2/1/0/2/0/0/0/0/0 Lore% 53 Gallery% 64 Achievement% 56 Wizard Run 0 Options --------- ASCII 0 Keyboard 0 Movement Mouse Keybinds 0 Fullscreen 2 Font 20/Terminus Map View 66x50 Tactical HUD 1 Map Filters NONE Filters NONE Steam 1 RUN: 8b5cad79-37d5-4435-ade2-757c40c708a9